[Event "Frauenbundesliga 2024-25"]
[Site "Germany"]
[Date "2025.02.15"]
[Round "5.9"]
[White "Sieber, Fiona"]
[Black "Khotenashvili, Bella"]
[Result "0-1"]
[Annotator "ChessBase"]
[ECO "B12"]
[WhiteElo "2274"]
[BlackElo "2419"]
[PlyCount "114"]
[EventDate "2024.11.06"]
[EventType "team-tourn"]
[EventCountry "GER"]
[SourceTitle "playchess.com"]
[Source "ChessBase"]
[SourceQuality "1"]
[TimeControl "40/5400+30:1800+30"]

1. e4 {[%emt 0:00:02]} c6 {[%emt 0:00:11]} 2. d4 {[%emt 0:00:16]} d5 {[%emt 0:00:06]} 3. e5 {[%emt 0:00:07]} Bf5 {[%emt 0:00:12]} 4. Nd2 {[%emt 0:00:09]} Qb6 {[%emt 0:07:18]} 5. Nb3 {[%emt 0:01:48]} a5 {[%emt 0:00:12]} 6. a4 {[%emt 0:00:54]} e6 {[%emt 0:00:08]} 7. Nf3 {[%emt 0:01:16]} h6 {[%emt 0:04:58]} 8. Be2 {[%emt 0:00:52]} Na6 {[%emt 0:00:56]} 9. c3 {[%emt 0:04:57]} Ne7 {[%emt 0:03:55]} 10. O-O {[%emt 0:07:17]} Bh7 {[%emt 0:06:13]} 11. Bd2 {[%emt 0:00:56]} Nf5 {[%emt 0:05:07]} 12. g4 {[%emt 0:06:10]} Ne7 {[%emt 0:01:30]} 13. c4 {[%emt 0:00:43]} dxc4 {[%emt 0:05:49]} 14. Nxa5 {[%emt 0:01:08]} Nd5 {[%emt 0:00:24]} 15. Nxc4 {[%emt 0:00:32]} Qd8 {[%emt 0:11:17]} 16. Qb3 {[%emt 0:13:41]} Nab4 {[%emt 0:09:08]} 17. Rfc1 {[%emt 0:13:14]} Be7 {[%emt 0:04:37]} 18. a5 {[%emt 0:04:50]} Ra7 {[%emt 0:05:51]} 19. Ra4 {[%emt 0:04:15]} Na6 {[%emt 0:01:18]} 20. Nd6+ {[%emt 0:17:02]} Bxd6 {[%emt 0:00:23]} 21. exd6 {[%emt 0:03:39]} Nb8 {[%emt 0:07:03]} 22. Bb4 {[%emt 0:03:54]} Nxb4 {[%emt 0:01:23]} 23. Rxb4 {[%emt 0:02:46]} O-O {[%emt 0:06:21]} 24. Rxb7 {[%emt 0:00:38]} Rxa5 {[%emt 0:05:44]} 25. Qb6 {[%emt 0:09:57]} Qxb6 {[%emt 0:04:41]} 26. Rxb6 {[%emt 0:00:01]} Rd5 {[%emt 0:00:43]} 27. b4 {[%emt 0:01:05]} Rxd6 {[%emt 0:05:57]} 28. b5 {[%emt 0:00:18]} Be4 {[%emt 0:00:12]} 29. Ne5 {[%emt 0:00:59]} f6 {[%emt 0:01:20]} 30. Nxc6 {[%emt 0:00:36]} Nxc6 {[%emt 0:00:37]} 31. bxc6 {[%emt 0:00:07]} Rc8 {[%emt 0:00:43]} 32. f3 {[%emt 0:00:33]} Rdxc6 {[%emt 0:00:43]} 33. Rcxc6 {[%emt 0:00:37]} Bxc6 {[%emt 0:00:08]} 34. Bc4 {[%emt 0:00:41]} Kf7 {[%emt 0:00:43]} 35. Kf2 {[%emt 0:00:15]} g5 {[%emt 0:00:51]} 36. Ke3 {[%emt 0:00:30]} Ke7 {[%emt 0:00:14]} 37. Ra6 {[%emt 0:00:41]} Bd7 {[%emt 0:01:10]} 38. Kd3 {[%emt 0:00:32]} Bc6 {[%emt 0:00:32]} 39. Ke3 {[%emt 0:00:03]} Rc7 {[%emt 0:00:12]} 40. Rb6 {[%emt 0:01:04]} Bd7 {[%emt 0:00:35]} 41. Kd3 {[%emt 0:09:16]} Ra7 {[%emt 0:07:01]} 42. Ra6 {[%emt 0:02:31]} Rb7 {[%emt 0:03:06]} 43. Ke3 {[%emt 0:02:07]} Rb2 {[%emt 0:05:03]} 44. Ra7 {[%emt 0:00:44]} f5 {[%emt 0:03:15]} 45. f4 {[%emt 0:03:13]} gxf4+ {[%emt 0:01:45]} 46. Kxf4 {[%emt 0:00:32]} Rb4 {[%emt 0:03:50]} 47. Bd3 {[%emt 0:02:09]} fxg4 {[%emt 0:02:02]} 48. Ke5 {[%emt 0:01:15]} Rb3 {[%emt 0:01:34]} 49. Bc4 {[%emt 0:02:54]} Rb2 {[%emt 0:00:25]} 50. Ra2 {[%emt 0:03:34]} Rb4 {[%emt 0:02:08]} 51. Bd3 {[%emt 0:01:11]} Rb3 {[%emt 0:01:22]} 52. Bc4 {[%emt 0:03:30]} Rc3 {[%emt 0:00:25]} 53. Be2 {[%emt 0:01:58]} h5 {[%emt 0:00:26]} 54. Kf4 {[%emt 0:00:38]} Kf6 {[%emt 0:00:36]} 55. Ra5 {[%emt 0:02:40]} Rh3 {[%emt 0:01:08]} 56. d5 {[%emt 0:00:35]} e5+ {[%emt 0:00:27]} 57. Ke4 {[%emt 0:00:03]} Bf5# {[%emt 0:00:05]} 0-1

[Event "Frauenbundesliga 2024-25"]
[Site "Germany"]
[Date "2025.02.15"]
[Round "5.9"]
[White "Peglau, Dora"]
[Black "Khrapko, Marharyta"]
[Result "0-1"]
[Annotator "NA"]
[ECO "E65"]
[WhiteElo "2134"]
[BlackElo "2126"]
[PlyCount "116"]
[EventDate "2024.11.06"]
[EventType "team-tourn"]
[EventCountry "GER"]
[SourceTitle "playchess.com"]
[Source "ChessBase"]
[SourceQuality "1"]
[TimeControl "40/5400+30:1800+30"]

1. Nf3 {[%emt 0:00:03]} Nf6 {[%emt 0:00:08]} 2. c4 {[%emt 0:00:21]} g6 {[%emt 0:00:19]} 3. g3 {[%emt 0:00:45]} Bg7 {[%emt 0:00:05]} 4. Bg2 {[%emt 0:00:05]} O-O {[%emt 0:01:05]} 5. O-O {[%emt 0:00:14]} d6 {[%emt 0:00:20]} 6. d4 {[%emt 0:01:35]} c5 {[%emt 0:05:23]} 7. Nc3 {[%emt 0:01:17]} Nbd7 {[%emt 0:07:34]} 8. e4 {[%emt 0:05:57]} cxd4 {[%emt 0:01:52]} 9. Nxd4 {[%emt 0:00:06]} Ne5 {[%emt 0:00:41]} 10. b3 {[%emt 0:01:49]} Bg4 {[%emt 0:00:59]} 11. f3 {[%emt 0:01:21]} Bd7 {[%emt 0:00:17]} 12. Be3 {[%emt 0:04:50]} a6 {[%emt 0:05:18]} 13. Qd2 {[%emt 0:03:36]} Rc8 {[%emt 0:02:49]} 14. Rac1 {[%emt 0:01:37]} Re8 {[%emt 0:01:16]} 15. h3 {[%emt 0:05:16]} Nc6 {[%emt 0:02:01]} 16. f4 {[%emt 0:11:52]} Nxd4 {[%emt 0:06:13]} 17. Bxd4 {[%emt 0:00:22]} Bc6 {[%emt 0:00:23]} 18. Nd5 {[%emt 0:04:02]} Bxd5 {[%emt 0:07:37]} 19. cxd5 {[%emt 0:07:00]} Nd7 {[%emt 0:02:02]} 20. Bxg7 {[%emt 0:15:01]} Kxg7 {[%emt 0:00:03]} 21. Qd4+ {[%emt 0:00:43]} Kg8 {[%emt 0:03:58]} 22. e5 {[%emt 0:04:04]} Qb6 {[%emt 0:07:55]} 23. Qxb6 {[%emt 0:00:06]} Nxb6 {[%emt 0:00:02]} 24. e6 {[%emt 0:01:45]} a5 {[%emt 0:12:40]} 25. exf7+ {[%emt 0:09:48]} Kxf7 {[%emt 0:00:04]} 26. Bf3 {[%emt 0:00:48]} Nd7 {[%emt 0:09:46]} 27. Rxc8 {[%emt 0:05:20]} Rxc8 {[%emt 0:00:02]} 28. Bg4 {[%emt 0:00:06]} Ke8 {[%emt 0:00:21]} 29. Bxd7+ {[%emt 0:07:33]} Kxd7 {[%emt 0:00:02]} 30. f5 {[%emt 0:00:11]} Rc3 {[%emt 0:02:35]} 31. f6 {[%emt 0:06:13]} exf6 {[%emt 0:00:06]} 32. Rxf6 {[%emt 0:00:07]} Rxg3+ {[%emt 0:00:03]} 33. Kh2 {[%emt 0:00:22]} Re3 {[%emt 0:02:18]} 34. Rf7+ {[%emt 0:00:01]} Re7 {[%emt 0:00:07]} 35. Rf2 {[%emt 0:00:03]} Kc7 {[%emt 0:00:46]} 36. Kg3 {[%emt 0:01:38]} Kb6 {[%emt 0:00:20]} 37. h4 {[%emt 0:01:20]} Kc5 {[%emt 0:01:58]} 38. Rd2 {[%emt 0:00:01]} b5 {[%emt 0:00:47]} 39. Kf4 {[%emt 0:01:41]} Re5 {[%emt 0:00:54]} 40. Rc2+ {[%emt 0:00:58]} Kxd5 {[%emt 0:00:21]} 41. Rc7 {[%emt 0:30:11]} Re4+ {[%emt 0:33:29]} 42. Kg5 {[%emt 0:00:19]} h6+ {[%emt 0:01:15]} 43. Kxh6 {[%emt 0:00:19]} Rxh4+ {[%emt 0:00:02]} 44. Kxg6 {[%emt 0:00:11]} Rh2 {[%emt 0:00:06]} 45. a4 {[%emt 0:00:00]} bxa4 {[%emt 0:00:00]} 46. bxa4 {[%emt 0:00:00]} Rh4 {[%emt 0:00:00]} 47. Kf5 {[%emt 0:00:00]} Rxa4 {[%emt 0:00:00]} 48. Rc1 {[%emt 0:00:00]} Rd4 {[%emt 0:00:00]} 49. Rc7 {[%emt 0:00:00]} Rc4 {[%emt 0:00:00]} 50. Ra7 {[%emt 0:00:00]} a4 {[%emt 0:00:00]} 51. Ra6 {[%emt 0:00:00]} Kc5 {[%emt 0:00:00]} 52. Ke6 {[%emt 0:00:00]} Rd4 {[%emt 0:00:00]} 53. Ra8 {[%emt 0:00:00]} Kb4 {[%emt 0:00:00]} 54. Rb8+ {[%emt 0:00:00]} Kc3 {[%emt 0:00:00]} 55. Kd7 {[%emt 0:00:00]} a3 {[%emt 0:00:00]} 56. Ra8 {[%emt 0:00:00]} Kb3 {[%emt 0:00:00]} 57. Rb8+ {[%emt 0:00:00]} Rb4 {[%emt 0:00:00]} 58. Rh8 {[%emt 0:00:00]} a2 {[%emt 0:00:00]} 0-1

[Event "Frauenbundesliga 2024-25"]
[Site "Germany"]
[Date "2025.02.15"]
[Round "5.10"]
[White "Bulmaga, Irina"]
[Black "Movsesian, Julia"]
[Result "1-0"]
[Annotator "ChessBase"]
[ECO "C50"]
[WhiteElo "2386"]
[BlackElo "2216"]
[PlyCount "157"]
[EventDate "2024.11.06"]
[EventType "team-tourn"]
[EventCountry "GER"]
[SourceTitle "playchess.com"]
[Source "ChessBase"]
[SourceQuality "1"]
[TimeControl "40/5400+30:1800+30"]

1. e4 {[%emt 0:00:05]} e5 {[%emt 0:00:16]} 2. Nf3 {[%emt 0:00:08]} Nc6 {[%emt 0:00:12]} 3. Bc4 {[%emt 0:00:09]} Nf6 {[%emt 0:00:40]} 4. d3 {[%emt 0:00:10]} Bc5 {[%emt 0:00:15]} 5. a4 {[%emt 0:00:14]} a6 {[%emt 0:00:59]} 6. a5 {[%emt 0:00:51]} d6 {[%emt 0:11:33]} 7. Bg5 {[%emt 0:04:41]} h6 {[%emt 0:03:13]} 8. Bh4 {[%emt 0:03:11]} Nd4 {[%emt 0:03:52]} 9. Nxd4 {[%emt 0:17:45]} Bxd4 {[%emt 0:00:05]} 10. c3 {[%emt 0:00:11]} Ba7 {[%emt 0:00:05]} 11. Nd2 {[%emt 0:00:40]} Qe7 {[%emt 0:05:40]} 12. h3 {[%emt 0:09:03]} Bd7 {[%emt 0:02:59]} 13. Nf1 {[%emt 0:10:28]} c6 {[%emt 0:11:58]} 14. Qe2 {[%emt 0:03:42]} O-O-O {[%emt 0:05:52]} 15. Ne3 {[%emt 0:12:17]} Be6 {[%emt 0:08:55]} 16. Bxe6+ {[%emt 0:05:40]} fxe6 {[%emt 0:01:29]} 17. Nc4 {[%emt 0:01:20]} g5 {[%emt 0:03:31]} 18. Bg3 {[%emt 0:00:01]} Qf7 {[%emt 0:03:51]} 19. d4 {[%emt 0:07:41]} Nh5 {[%emt 0:00:30]} 20. Bh2 {[%emt 0:08:13]} Nf4 {[%emt 0:06:42]} 21. Bxf4 {[%emt 0:00:07]} gxf4 {[%emt 0:02:04]} 22. dxe5 {[%emt 0:00:45]} dxe5 {[%emt 0:00:21]} 23. Rd1 {[%emt 0:02:26]} Qg7 {[%emt 0:07:09]} 24. Rxd8+ {[%emt 0:02:31]} Rxd8 {[%emt 0:00:21]} 25. Qg4 {[%emt 0:03:28]} Qf6 {[%emt 0:01:26]} 26. Ke2 {[%emt 0:02:00]} Qe7 {[%emt 0:05:52]} 27. b3 {[%emt 0:03:13]} Qd7 {[%emt 0:06:09]} 28. Qf3 {[%emt 0:00:11]} Kb8 {[%emt 0:01:02]} 29. Re1 {[%emt 0:00:40]} Ka8 {[%emt 0:03:49]} 30. Rc1 {[%emt 0:00:35]} Bc5 {[%emt 0:01:59]} 31. Ke1 {[%emt 0:00:17]} Ba7 {[%emt 0:01:20]} 32. Rc2 {[%emt 0:00:50]} Qe7 {[%emt 0:00:12]} 33. Qh5 {[%emt 0:00:35]} Qg7 {[%emt 0:00:38]} 34. Kf1 {[%emt 0:00:41]} Bb8 {[%emt 0:01:27]} 35. Qe2 {[%emt 0:01:10]} Ba7 {[%emt 0:00:27]} 36. Rd2 {[%emt 0:00:18]} Rg8 {[%emt 0:00:34]} 37. Qf3 {[%emt 0:00:06]} Qe7 {[%emt 0:00:33]} 38. Qd3 {[%emt 0:01:18]} Qg5 {[%emt 0:00:21]} 39. Qf3 {[%emt 0:00:05]} Qe7 {[%emt 0:00:04]} 40. Qd1 {[%emt 0:00:41]} Qg5 {[%emt 0:01:03]} 41. Qg4 {[%emt 0:03:05]} Qxg4 {[%emt 0:10:23]} 42. hxg4 {[%emt 0:00:15]} Bb8 {[%emt 0:00:04]} 43. f3 {[%emt 0:02:25]} h5 {[%emt 0:03:21]} 44. gxh5 {[%emt 0:02:25]} Rh8 {[%emt 0:00:17]} 45. Nb6+ {[%emt 0:04:36]} Ka7 {[%emt 0:00:02]} 46. Rd7 {[%emt 0:00:21]} Rxh5 {[%emt 0:01:15]} 47. b4 {[%emt 0:10:24]} Rh1+ {[%emt 0:01:23]} 48. Ke2 {[%emt 0:00:08]} Ra1 {[%emt 0:01:50]} 49. Kd3 {[%emt 0:00:27]} Rg1 {[%emt 0:03:49]} 50. Rg7 {[%emt 0:00:15]} Rd1+ {[%emt 0:02:47]} 51. Kc4 {[%emt 0:00:12]} Rd8 {[%emt 0:00:40]} 52. Rd7 {[%emt 0:02:10]} Rxd7 {[%emt 0:09:19]} 53. Nxd7 {[%emt 0:00:02]} Bd6 {[%emt 0:00:17]} 54. Nc5 {[%emt 0:00:48]} b5+ {[%emt 0:00:37]} 55. axb6+ {[%emt 0:00:21]} Kxb6 {[%emt 0:00:04]} 56. Nxe6 {[%emt 0:00:06]} a5 {[%emt 0:00:25]} 57. bxa5+ {[%emt 0:00:53]} Kxa5 {[%emt 0:00:02]} 58. Ng7 {[%emt 0:01:33]} Kb6 {[%emt 0:02:28]} 59. Nf5 {[%emt 0:00:10]} Bf8 {[%emt 0:00:09]} 60. g4 {[%emt 0:00:42]} fxg3 {[%emt 0:00:04]} 61. Nxg3 {[%emt 0:00:02]} Bh6 {[%emt 0:01:14]} 62. Nf5 {[%emt 0:00:24]} Bf4 {[%emt 0:00:11]} 63. Ng7 {[%emt 0:00:18]} Bh6 {[%emt 0:00:46]} 64. Ne6 {[%emt 0:01:07]} Bc1 {[%emt 0:00:29]} 65. Nc5 {[%emt 0:01:10]} Bf4 {[%emt 0:00:08]} 66. Kb4 {[%emt 0:01:00]} Bg3 {[%emt 0:00:52]} 67. Nd3 {[%emt 0:03:28]} Bh2 {[%emt 0:00:26]} 68. c4 {[%emt 0:02:05]} Bg3 {[%emt 0:00:23]} 69. Kc3 {[%emt 0:00:13]} Ka5 {[%emt 0:00:19]} 70. Nc1 {[%emt 0:01:33]} Ka4 {[%emt 0:00:41]} 71. Ne2 {[%emt 0:00:56]} Bf2 {[%emt 0:00:35]} 72. f4 {[%emt 0:00:14]} exf4 {[%emt 0:00:30]} 73. Nxf4 {[%emt 0:00:05]} Be1+ {[%emt 0:00:24]} 74. Kd3 {[%emt 0:02:28]} Kb4 {[%emt 0:00:11]} 75. e5 {[%emt 0:00:58]} Kc5 {[%emt 0:00:57]} 76. Ne6+ {[%emt 0:00:30]} Kb4 {[%emt 0:00:35]} 77. Nd4 {[%emt 0:00:01]} Kc5 {[%emt 0:00:11]} 78. Nf5 {[%emt 0:00:09]} Kb6 {[%emt 0:00:52]} 79. e6 {[%emt 0:00:02]} 1-0

[Event "Frauenbundesliga 2024-25"]
[Site "Germany"]
[Date "2025.02.15"]
[Round "5.10"]
[White "Giss, Helene"]
[Black "Braeutigam, Katerina"]
[Result "0-1"]
[Annotator "NA"]
[ECO "B15"]
[WhiteElo "2040"]
[BlackElo "1981"]
[PlyCount "88"]
[EventDate "2024.11.06"]
[EventType "team-tourn"]
[EventCountry "GER"]
[SourceTitle "playchess.com"]
[Source "ChessBase"]
[SourceQuality "1"]
[TimeControl "40/5400+30:1800+30"]

1. e4 {[%emt 0:00:02]} c6 {[%emt 0:00:05]} 2. d4 {[%emt 0:00:07]} g6 {[%emt 0:00:36]} 3. Nc3 {[%emt 0:00:56]} Bg7 {[%emt 0:00:30]} 4. f4 {[%emt 0:00:30]} d5 {[%emt 0:00:30]} 5. e5 {[%emt 1:31:25]} Qb6 6. a4 {[%emt 0:00:00]} a5 {[%emt 0:01:23]} 7. Nf3 {[%emt 0:00:00]} h5 {[%emt 0:03:35]} 8. Ra3 {[%emt 0:00:00]} Na6 {[%emt 0:12:49]} 9. Be3 {[%emt 0:00:00]} Nb4 {[%emt 0:07:01]} 10. Ne2 {[%emt 0:00:00]} Bf5 {[%emt 0:09:56]} 11. Rc3 {[%emt 0:00:00]} Nh6 {[%emt 0:14:25]} 12. Ng3 {[%emt 0:00:00]} Bd7 {[%emt 0:07:04]} 13. Rb3 {[%emt 0:00:00]} Ng4 {[%emt 0:05:15]} 14. Bg1 {[%emt 0:00:00]} h4 {[%emt 0:07:12]} 15. Ne2 {[%emt 0:00:00]} Bf5 {[%emt 0:03:51]} 16. Rc3 {[%emt 0:00:00]} Na2 {[%emt 0:08:16]} 17. Rb3 {[%emt 0:00:00]} Nb4 {[%emt 0:00:23]} 18. Rc3 {[%emt 0:00:00]} Be4 {[%emt 0:11:07]} 19. h3 {[%emt 0:00:00]} Bxf3 {[%emt 0:01:00]} 20. Rxf3 {[%emt 0:00:00]} Nh6 {[%emt 0:00:15]} 21. c3 {[%emt 0:00:25]} Na6 {[%emt 0:00:24]} 22. Qc2 {[%emt 0:00:22]} Nf5 {[%emt 0:01:12]} 23. Bf2 {[%emt 0:00:41]} e6 {[%emt 0:02:34]} 24. Nc1 {[%emt 0:02:28]} Bf8 {[%emt 0:02:27]} 25. Bd3 {[%emt 0:02:09]} Be7 {[%emt 0:00:35]} 26. Ne2 {[%emt 0:00:58]} c5 {[%emt 0:00:29]} 27. g4 {[%emt 0:02:31]} hxg3 {[%emt 0:00:12]} 28. Nxg3 {[%emt 0:00:16]} Nxg3 {[%emt 0:00:32]} 29. dxc5 {[%emt 0:00:46]} Nxc5 {[%emt 0:00:36]} 30. Bb5+ {[%emt 0:00:52]} Kf8 {[%emt 0:00:16]} 31. Bxg3 {[%emt 0:00:18]} Ne4 {[%emt 0:00:31]} 32. Ke2 {[%emt 0:00:46]} Bh4 {[%emt 0:00:50]} 33. Bxh4 {[%emt 0:00:33]} Rxh4 {[%emt 0:00:01]} 34. Qd3 {[%emt 0:00:48]} Kg7 {[%emt 0:01:03]} 35. Qe3 {[%emt 0:00:07]} Qc7 {[%emt 0:00:28]} 36. Qd4 {[%emt 0:00:46]} Rah8 {[%emt 0:00:30]} 37. c4 {[%emt 0:00:28]} Ng5 {[%emt 0:00:16]} 38. Rg3 {[%emt 0:00:41]} Nxh3 {[%emt 0:00:29]} 39. Rf1 {[%emt 0:00:22]} dxc4 {[%emt 0:00:24]} 40. Bxc4 {[%emt 0:00:12]} Rd8 {[%emt 0:00:26]} 41. Qe4 {[%emt 0:02:39]} Qb6 {[%emt 0:16:46]} 42. Rb3 {[%emt 0:07:34]} Qd4 {[%emt 0:02:43]} 43. Bd3 {[%emt 0:02:16]} Nxf4+ {[%emt 0:01:53]} 44. Kf3 {[%emt 0:08:00]} Nxd3 {[%emt 0:01:49]} 0-1

[Event "Frauenbundesliga 2024-25"]
[Site "Germany"]
[Date "2025.02.15"]
[Round "5.11"]
[White "Schoene, Maria"]
[Black "Atalik, Ekaterina"]
[Result "0-1"]
[Annotator "ChessBase"]
[ECO "B14"]
[WhiteElo "2178"]
[BlackElo "2385"]
[PlyCount "98"]
[EventDate "2024.11.06"]
[EventType "team-tourn"]
[EventCountry "GER"]
[SourceTitle "playchess.com"]
[Source "ChessBase"]
[SourceQuality "1"]
[TimeControl "40/5400+30:1800+30"]

1. e4 {[%emt 0:00:03]} c6 {[%emt 0:00:07]} 2. d4 {[%emt 0:00:08]} d5 {[%emt 0:00:05]} 3. exd5 {[%emt 0:00:08]} cxd5 {[%emt 0:00:07]} 4. c4 {[%emt 0:00:23]} Nf6 {[%emt 0:00:25]} 5. Nc3 {[%emt 0:00:18]} g6 {[%emt 0:00:47]} 6. cxd5 {[%emt 0:00:47]} Bg7 {[%emt 0:00:50]} 7. Bc4 {[%emt 0:01:15]} Nbd7 {[%emt 0:01:43]} 8. Nge2 {[%emt 0:21:14]} Nb6 {[%emt 0:01:47]} 9. Qb3 {[%emt 0:10:22]} O-O {[%emt 0:02:28]} 10. O-O {[%emt 0:00:34]} Nxc4 {[%emt 0:11:21]} 11. Qxc4 {[%emt 0:00:13]} b6 {[%emt 0:00:14]} 12. Nf4 {[%emt 0:01:39]} Bb7 {[%emt 0:00:57]} 13. Re1 {[%emt 0:01:01]} Qd7 {[%emt 0:02:36]} 14. h3 {[%emt 0:04:07]} Rac8 {[%emt 0:12:08]} 15. Qb3 {[%emt 0:01:25]} Rfe8 {[%emt 0:01:15]} 16. Bd2 {[%emt 0:03:53]} Ba6 {[%emt 0:13:13]} 17. Rac1 {[%emt 0:12:40]} g5 {[%emt 0:06:23]} 18. Nfe2 {[%emt 0:01:15]} h6 {[%emt 0:01:06]} 19. Ng3 {[%emt 0:05:26]} Bc4 {[%emt 0:05:01]} 20. Qc2 {[%emt 0:13:51]} Bxd5 {[%emt 0:13:05]} 21. Nf5 {[%emt 0:02:26]} Bf8 {[%emt 0:02:40]} 22. Qd3 {[%emt 0:04:44]} e6 {[%emt 0:04:36]} 23. Ne3 {[%emt 0:00:05]} Bb7 {[%emt 0:01:18]} 24. Nc4 {[%emt 0:09:07]} Red8 {[%emt 0:07:34]} 25. Ne2 {[%emt 0:03:25]} Bg7 {[%emt 0:03:19]} 26. b3 {[%emt 0:00:35]} Ne4 {[%emt 0:01:17]} 27. Be3 {[%emt 0:00:24]} Nd6 {[%emt 0:02:51]} 28. Ne5 {[%emt 0:00:18]} Qe7 {[%emt 0:00:21]} 29. Rxc8 {[%emt 0:00:34]} Rxc8 {[%emt 0:00:13]} 30. Rc1 {[%emt 0:00:08]} Rxc1+ {[%emt 0:00:13]} 31. Bxc1 {[%emt 0:00:06]} Nf5 {[%emt 0:01:00]} 32. Qc4 {[%emt 0:00:52]} Qd8 {[%emt 0:00:46]} 33. Bb2 {[%emt 0:01:43]} Bxe5 {[%emt 0:01:51]} 34. dxe5 {[%emt 0:00:03]} Qd1+ {[%emt 0:00:11]} 35. Kh2 {[%emt 0:00:02]} Qf1 {[%emt 0:00:47]} 36. Qg4 {[%emt 0:01:22]} Qxf2 {[%emt 0:00:47]} 37. Bd4 {[%emt 0:00:50]} Qf1 {[%emt 0:01:37]} 38. Bg1 {[%emt 0:00:58]} Nh4 {[%emt 0:00:33]} 39. Nd4 {[%emt 0:00:06]} Bxg2 {[%emt 0:01:10]} 40. a4 {[%emt 0:01:28]} Bd5 {[%emt 0:00:43]} 41. Qg3 {[%emt 0:09:24]} Qb1 {[%emt 0:08:07]} 42. Qe3 {[%emt 0:01:35]} Ng2 {[%emt 0:02:27]} 43. Qe2 {[%emt 0:05:29]} Nf4 {[%emt 0:00:45]} 44. Qe3 {[%emt 0:00:30]} Qf1 {[%emt 0:01:28]} 45. Qg3 {[%emt 0:00:33]} Kf8 {[%emt 0:01:42]} 46. b4 {[%emt 0:01:55]} Qb1 {[%emt 0:02:21]} 47. Qe3 {[%emt 0:06:16]} Qxb4 {[%emt 0:01:10]} 48. h4 {[%emt 0:00:13]} Qb2+ {[%emt 0:00:40]} 49. Bf2 {[%emt 0:01:28]} Nd3 {[%emt 0:01:40]} 0-1

[Event "Frauenbundesliga 2024-25"]
[Site "Germany"]
[Date "2025.02.15"]
[Round "5.11"]
[White "Just, Anita"]
[Black "Werner, Carolin"]
[Result "1-0"]
[Annotator "NA"]
[ECO "B33"]
[WhiteElo "1906"]
[BlackElo "1973"]
[PlyCount "107"]
[EventDate "2024.11.06"]
[EventType "team-tourn"]
[EventCountry "GER"]
[SourceTitle "playchess.com"]
[Source "ChessBase"]
[SourceQuality "1"]
[TimeControl "40/5400+30:1800+30"]

1. e4 {[%emt 0:00:03]} c5 {[%emt 0:00:05]} 2. Nf3 {[%emt 0:00:07]} Nc6 {[%emt 0:00:05]} 3. d4 {[%emt 0:00:05]} cxd4 {[%emt 0:00:05]} 4. Nxd4 {[%emt 0:00:06]} Nf6 {[%emt 0:00:08]} 5. Nc3 {[%emt 0:00:15]} e5 {[%emt 0:00:06]} 6. Ndb5 {[%emt 0:00:28]} d6 {[%emt 0:00:17]} 7. Bg5 {[%emt 0:01:14]} a6 {[%emt 0:00:13]} 8. Na3 {[%emt 0:00:26]} b5 {[%emt 0:00:06]} 9. Bxf6 {[%emt 0:01:31]} gxf6 {[%emt 0:01:48]} 10. Nd5 {[%emt 0:00:17]} Bg7 {[%emt 0:08:45]} 11. c3 {[%emt 0:03:56]} Ne7 {[%emt 0:05:32]} 12. Nxe7 {[%emt 0:09:48]} Qxe7 {[%emt 0:00:35]} 13. Nc2 {[%emt 0:01:29]} f5 {[%emt 0:04:13]} 14. exf5 {[%emt 0:03:02]} Bxf5 {[%emt 0:01:32]} 15. Qf3 {[%emt 0:04:06]} O-O {[%emt 0:42:04]} 16. Qxf5 {[%emt 0:01:27]} d5 {[%emt 0:01:02]} 17. Be2 {[%emt 0:01:50]} Rac8 {[%emt 0:04:05]} 18. O-O {[%emt 0:03:48]} Rc6 {[%emt 0:00:49]} 19. Nb4 {[%emt 0:03:11]} Rd6 {[%emt 0:07:26]} 20. Rad1 {[%emt 0:04:54]} Rfd8 {[%emt 0:04:04]} 21. Bh5 {[%emt 0:11:49]} a5 {[%emt 0:07:31]} 22. Nc2 {[%emt 0:02:23]} Re6 {[%emt 0:03:06]} 23. Ne3 {[%emt 0:06:28]} d4 {[%emt 0:00:55]} 24. Nc2 {[%emt 0:02:13]} b4 {[%emt 0:04:44]} 25. cxd4 {[%emt 0:03:25]} exd4 {[%emt 0:00:06]} 26. Qf3 {[%emt 0:03:38]} Qc7 {[%emt 0:00:29]} 27. Ne1 {[%emt 0:04:33]} Rf6 {[%emt 0:01:09]} 28. Qg3 {[%emt 0:03:34]} Qc5 {[%emt 0:00:11]} 29. Be2 {[%emt 0:04:50]} Qd5 {[%emt 0:00:45]} 30. Qb3 {[%emt 0:04:14]} Qd6 {[%emt 0:00:36]} 31. Bc4 {[%emt 0:05:51]} Rd7 {[%emt 0:00:09]} 32. Qg3 {[%emt 0:02:02]} Qc5 {[%emt 0:01:17]} 33. b3 {[%emt 0:01:07]} Rg6 {[%emt 0:00:23]} 34. Qf3 {[%emt 0:02:14]} Qd6 {[%emt 0:00:51]} 35. Nd3 {[%emt 0:01:00]} Rh6 {[%emt 0:00:45]} 36. g3 {[%emt 0:01:46]} Rf6 {[%emt 0:00:12]} 37. Qa8+ {[%emt 0:00:44]} Bf8 {[%emt 0:00:07]} 38. Qxa5 {[%emt 0:00:58]} Kg7 {[%emt 0:01:55]} 39. Qg5+ {[%emt 0:00:20]} Kh8 {[%emt 0:00:29]} 40. Qe5 {[%emt 0:00:38]} Qb6 {[%emt 0:00:26]} 41. Rfe1 {[%emt 0:32:34]} Ra7 {[%emt 0:05:55]} 42. Nf4 {[%emt 0:00:00]} d3 {[%emt 0:10:59]} 43. Nxd3 {[%emt 0:00:00]} Rxa2 {[%emt 0:02:39]} 44. Re2 {[%emt 0:00:00]} Ra5 {[%emt 0:00:03]} 45. Qb2 {[%emt 0:00:00]} Qd8 {[%emt 0:08:50]} 46. Bxf7 {[%emt 0:00:00]} Kg7 {[%emt 0:01:34]} 47. Bc4 {[%emt 0:00:00]} Bc5 {[%emt 0:00:22]} 48. Re4 {[%emt 0:00:00]} Kf8 {[%emt 0:03:48]} 49. Rde1 {[%emt 0:00:00]} Qd6 {[%emt 0:00:31]} 50. Re8+ {[%emt 0:00:00]} Kg7 {[%emt 0:00:01]} 51. Rg8+ {[%emt 0:00:00]} Kh6 {[%emt 0:00:14]} 52. Qd2+ {[%emt 0:00:00]} Rf4 {[%emt 0:01:07]} 53. Qxf4+ {[%emt 0:00:05]} Qxf4 {[%emt 0:00:04]} 54. Re6+ {[%emt 0:00:52]} 1-0